bitfinex-derivatives/quotes_BTCF0:USTF0_20230701
["timestamp","ask_amount","ask_price","bid_price","bid_amount"]
[1688241232470,0.506587,30634.0,30633.0,0.93952973]
[1688241233776,0.506587,30634.0,30633.0,0.95775942]
[1688241234379,0.506587,30634.0,30633.0,0.97640627]
[1688241235779,0.506587,30634.0,30633.0,0.95817658]
[1688241236380,0.506587,30634.0,30633.0,0.97640627]
[1688241236582,0.506587,30634.0,30633.0,0.95817658]
[1688241236883,0.506587,30634.0,30633.0,0.93932713]
[1688241243784,0.506587,30634.0,30633.0,0.91973913]
[1688241244091,0.506587,30634.0,30633.0,0.61173913]
[1688241245381,0.506587,30634.0,30633.0,0.63132713]
[1688241246893,0.506587,30634.0,30633.0,0.63109643]
[1688241247709,0.506587,30634.0,30633.0,0.27029643]
[1688241247883,0.506587,30634.0,30633.0,0.63109643]
[1688241248088,0.506587,30634.0,30633.0,0.95979643]
[1688241250093,0.506587,30634.0,30633.0,0.59899643]
[1688241250398,0.506587,30634.0,30633.0,0.95979643]
[1688241254600,0.506587,30634.0,30633.0,0.59899643]
[1688241254800,0.506587,30634.0,30633.0,0.95979643]
[1688241258097,0.506587,30634.0,30633.0,0.99687557]
[1688241258603,0.506587,30634.0,30633.0,0.97864588]
[1688241259795,0.506587,30634.0,30633.0,0.61784588]
[1688241260105,0.506587,30634.0,30633.0,0.95979643]
[1688241261197,0.506587,30634.0,30633.0,0.97840698]
[1688241262004,0.506587,30634.0,30633.0,0.99663667]
[1688241262407,0.506587,30634.0,30633.0,0.95955753]
[1688241262601,0.506587,30634.0,30633.0,0.59875753]
[1688241262803,0.506587,30634.0,30633.0,0.95955753]
[1688241268499,0.506587,30634.0,30633.0,0.59875753]
[1688241268699,0.506587,30634.0,30633.0,0.95955753]
[1688241268903,0.506587,30634.0,30633.0,0.59875753]
[1688241269101,0.506587,30634.0,30633.0,0.95955753]
[1688241270826,0.506587,30634.0,30633.0,0.59875753]
[1688241271122,0.506587,30634.0,30633.0,0.95955753]
[1688241272728,0.506587,30634.0,30633.0,0.59875753]
[1688241272927,0.506587,30634.0,30633.0,0.95955753]
[1688241276130,0.506587,30634.0,30633.0,0.95947142]
[1688241276931,0.506587,30634.0,30633.0,0.97770111]
[1688241277130,0.506587,30634.0,30633.0,0.95947142]
[1688241285934,0.506587,30634.0,30633.0,0.59867142]
[1688241286132,0.506587,30634.0,30633.0,0.95947142]
[1688241288730,0.506587,30634.0,30633.0,0.95926722]
[1688241289039,0.506587,30634.0,30633.0,0.59846722]
[1688241289241,0.506587,30634.0,30633.0,0.95926722]
[1688241289548,0.506587,30634.0,30633.0,0.97749691]
[1688241289929,0.506587,30634.0,30633.0,0.99634636]
[1688241291041,0.506587,30634.0,30633.0,0.97811667]
[1688241292645,0.506587,30634.0,30633.0,0.99634636]
[1688241292944,0.506587,30634.0,30633.0,0.97811667]
[1688241293140,0.506587,30634.0,30633.0,0.95926722]
[1688241293936,0.506587,30634.0,30633.0,0.97811667]
[1688241294136,0.506587,30634.0,30633.0,0.99634636]
[1688241295136,0.506587,30634.0,30633.0,0.97811667]
[1688241295337,0.506587,30634.0,30633.0,0.99634636]
[1688241296042,0.506587,30634.0,30633.0,0.97811667]
[1688241296946,0.506587,30634.0,30633.0,0.99634636]
[1688241300946,0.487,30634.0,30633.0,0.99634636]
[1688241301539,0.487,30634.0,30633.0,0.97811667]
[1688241301941,0.487,30634.0,30633.0,0.99634636]
[1688241302542,0.487,30634.0,30633.0,0.99615156]
[1688241302844,0.487,30634.0,30633.0,0.97730211]
[1688241303245,0.487,30634.0,30633.0,0.95907242]
[1688241305144,0.487,30634.0,30633.0,0.97730211]
[1688241305449,0.487,30634.0,30633.0,0.99615156]
[1688241306154,0.506587,30634.0,30633.0,0.95907242]
[1688241307451,0.506587,30634.0,30633.0,0.97730211]
[1688241307749,0.506587,30634.0,30633.0,0.99615156]
[1688241308455,0.506587,30634.0,30633.0,0.63535156]
[1688241308641,0.506587,30634.0,30633.0,0.97792187]
[1688241308948,0.506587,30634.0,30633.0,0.99615156]
[1688241309352,0.506587,30634.0,30633.0,0.63535156]
[1688241309554,0.506587,30634.0,30633.0,0.99615156]
[1688241310740,0.50643004,30634.0,30633.0,0.99615156]
[1688241311957,0.48684304,30634.0,30633.0,0.99615156]
[1688241312254,0.48684304,30634.0,30633.0,0.97792187]
[1688241312755,0.48684304,30634.0,30633.0,0.95907242]
[1688241313759,0.50643004,30634.0,30633.0,0.95907242]
[1688241317859,0.50643004,30634.0,30633.0,0.93948442]
[1688241320763,0.50643004,30634.0,30633.0,0.95907242]
[1688241323766,0.50643004,30634.0,30633.0,0.93948442]
[1688241327458,0.50643004,30634.0,30633.0,0.95907242]
[1688241329571,0.50643004,30634.0,30633.0,0.97792187]
[1688241329770,0.48684304,30634.0,30633.0,0.97792187]
[1688241330766,0.50643004,30634.0,30633.0,0.97792187]
[1688241332275,0.50643004,30634.0,30633.0,0.99615156]
[1688241332576,0.48684304,30634.0,30633.0,0.99615156]
[1688241334082,0.48684304,30634.0,30633.0,0.99602719]
[1688241334271,0.48684304,30634.0,30633.0,1.35682719]
[1688241335072,0.48684304,30634.0,30633.0,1.3385975]
[1688241335280,0.48684304,30634.0,30633.0,1.31974805]
[1688241335471,0.48684304,30634.0,30633.0,1.3385975]
[1688241335878,0.48684304,30634.0,30633.0,1.35682719]
[1688241340079,0.48684304,30634.0,30633.0,0.63522719]
[1688241340380,0.48684304,30634.0,30633.0,1.35682719]
[1688241343692,0.48684304,30634.0,30633.0,0.63522719]
[1688241343885,0.48684304,30634.0,30633.0,1.3507299]
[1688241344087,0.48684304,30634.0,30633.0,1.35640908]
[1688241344392,0.50643004,30634.0,30633.0,1.35640908]
[1688241344590,0.50643004,30634.0,30633.0,1.33755963]
[1688241345485,0.50643004,30634.0,30633.0,1.31932994]
[1688241345789,0.50643004,30634.0,30633.0,1.33755963]
[1688241349081,0.50643004,30634.0,30633.0,1.33749358]
[1688241352096,0.50624337,30634.0,30633.0,1.33749358]
[1688241353294,0.50624337,30634.0,30633.0,1.35634303]
[1688241353696,0.50624337,30634.0,30633.0,0.63474303]
[1688241353994,0.50624337,30634.0,30633.0,1.33749358]
[1688241357500,0.50624337,30634.0,30633.0,0.97669358]
[1688241357691,0.50624337,30634.0,30633.0,0.95846389]
[1688241358392,0.50624337,30634.0,30633.0,0.97669358]
[1688241360002,0.50624337,30634.0,30633.0,0.61589358]
[1688241360193,0.50624337,30634.0,30633.0,0.95846389]
[1688241360393,0.50624337,30634.0,30633.0,0.97669358]
[1688241360902,0.50624337,30634.0,30633.0,0.95846389]
[1688241362401,0.50624337,30634.0,30633.0,0.97669358]
[1688241363105,0.50624337,30634.0,30633.0,0.95846389]
[1688241363608,0.50624337,30634.0,30633.0,0.97669358]
[1688241364096,0.50624337,30634.0,30633.0,0.95846389]
[1688241365804,0.50624337,30634.0,30633.0,0.95829278]
[1688241369807,0.50624337,30634.0,30633.0,0.59749278]
[1688241369998,0.50624337,30634.0,30633.0,0.95829278]
[1688241370497,0.50624337,30634.0,30633.0,0.99537192]
[1688241372402,0.50624337,30634.0,30633.0,0.63457192]
[1688241372607,0.50624337,30634.0,30633.0,0.99537192]
[1688241373003,0.50624337,30634.0,30633.0,0.97652247]
[1688241373411,0.50624337,30634.0,30633.0,0.95829278]
[1688241375010,0.50624337,30634.0,30633.0,0.97652247]
[1688241379803,0.50624337,30634.0,30633.0,0.61572247]
[1688241380004,0.50624337,30634.0,30633.0,0.95829278]
[1688241380204,0.50624337,30634.0,30633.0,0.97635351]
[1688241381116,0.50624337,30634.0,30633.0,0.95812382]
[1688241382116,0.50624337,30634.0,30633.0,0.97635351]
[1688241382310,0.50624337,30634.0,30633.0,0.95812382]
[1688241383721,0.50624337,30634.0,30633.0,0.97635351]
[1688241385520,0.50624337,30634.0,30633.0,0.95812382]
[1688241386020,0.50624337,30634.0,30633.0,0.97697327]
[1688241387407,0.50624337,30634.0,30633.0,0.99520296]
[1688241387720,0.50624337,30634.0,30633.0,0.97697327]
[1688241388221,0.50624337,30634.0,30633.0,0.99520296]
[1688241389721,0.50624337,30634.0,30633.0,1.35600296]
[1688241390917,0.48665637,30634.0,30633.0,1.35600296]
[1688241391324,0.48665637,30634.0,30633.0,1.35032378]
[1688241391515,0.019585,30638.0,30633.0,1.56014464]
[1688241391716,0.058749,30640.0,30637.0,0.6082]
[1688241391911,0.058749,30640.0,30639.0,0.6082]
[1688241392219,0.57438893,30640.0,30639.0,0.66486214]
[1688241399330,0.57438893,30640.0,30639.0,0.64601269]
[1688241401131,0.57438893,30640.0,30639.0,0.66486214]
[1688241405328,0.57425573,30640.0,30639.0,0.66486214]
[1688241416637,0.57425573,30640.0,30639.0,0.64663245]
[1688241416940,0.57425573,30640.0,30639.0,0.66486214]
[1688241419045,0.57425573,30640.0,30639.0,0.41746214]
[1688241419246,0.57425573,30640.0,30639.0,0.64663245]
[1688241419448,0.57425573,30640.0,30639.0,0.66486214]
[1688241421050,0.51563993,30640.0,30639.0,0.66486214]
[1688241423855,0.51563993,30640.0,30639.0,0.30406214]
[1688241424150,0.51563993,30640.0,30639.0,0.66486214]
[1688241432857,0.51563993,30640.0,30639.0,0.66471465]
[1688241439259,0.51563993,30640.0,30639.0,1.02551465]
[1688241440463,0.51563993,30640.0,30639.0,0.30391465]
[1688241440757,0.51563993,30640.0,30639.0,1.02551465]
[1688241444162,0.53522293,30640.0,30639.0,1.02551465]
[1688241446361,0.53522293,30640.0,30639.0,1.00657627]
[1688241448255,0.53522293,30640.0,30639.0,0.98834658]
[1688241448864,0.00048956,30643.0,30639.0,1.23524658]
[1688241449062,0.367267,30645.0,30643.0,0.019581]
[1688241449258,0.35054253,30649.0,30644.0,0.58218]
[1688241449259,0.11758114,30649.0,30644.0,0.58218]
[1688241449458,0.07841829,30649.0,30648.0,1.235978]
[1688241449858,0.09678225,30649.0,30648.0,1.25420769]
[1688241450165,0.07841829,30649.0,30648.0,1.27305714]
[1688241450467,0.21389878,30651.0,30648.0,1.59715714]
[1688241450666,0.02006441,30652.0,30651.0,0.019576]
[1688241450869,0.02006441,30652.0,30651.0,0.873576]
[1688241451268,0.02006441,30652.0,30651.0,0.91065514]
[1688241453869,0.0458955,30652.0,30651.0,0.91065514]
[1688241454068,0.02006441,30652.0,30651.0,0.66325514]
[1688241455166,0.02006441,30652.0,30651.0,0.64440569]
[1688241456770,0.02006441,30652.0,30651.0,0.66325514]
[1688241463079,0.02006441,30652.0,30651.0,0.66315607]
[1688241465082,0.01999781,30652.0,30651.0,0.66315607]
[1688241465284,0.03510884,30652.0,30651.0,0.66315607]
[1688241471509,0.03510884,30652.0,30651.0,0.30235607]
[1688241471689,0.03510884,30652.0,30651.0,0.66315607]
[1688241473998,0.03510884,30652.0,30651.0,0.62607693]
[1688241474394,0.03510884,30652.0,30651.0,0.64430662]
[1688241475099,0.03510884,30652.0,30651.0,0.62607693]
[1688241475294,0.03510884,30652.0,30651.0,0.64430662]
[1688241476301,0.03510884,30652.0,30651.0,0.97545607]
[1688241478905,0.03510884,30652.0,30651.0,0.97530411]
[1688241479504,0.03510884,30652.0,30651.0,0.93822497]
[1688241480108,0.03510884,30652.0,30651.0,0.95645466]
[1688241480310,0.03510884,30652.0,30651.0,0.97530411]
[1688241481608,0.03510884,30652.0,30651.0,0.95645466]
[1688241482497,0.01553384,30652.0,30651.0,0.95645466]
[1688241482698,0.01553384,30652.0,30651.0,0.97530411]
[1688241487704,0.03510884,30652.0,30651.0,0.97530411]
[1688241490506,0.03510884,30652.0,30651.0,0.95645466]
[1688241491008,0.03510884,30652.0,30651.0,0.93822497]
[1688241492503,0.03510884,30652.0,30651.0,0.95645466]
[1688241493006,0.03510884,30652.0,30651.0,0.95637746]
[1688241495305,0.03510884,30652.0,30651.0,0.93814777]
[1688241499914,0.03510884,30652.0,30651.0,0.57734777]
[1688241505120,0.0349138,30652.0,30651.0,0.59619722]
[1688241506216,0.0349138,30652.0,30651.0,0.57734777]
[1688241507813,0.0349138,30652.0,30651.0,0.265376]
[1688241508008,0.0349138,30652.0,30651.0,0.2458]
[1688241508722,0.0349138,30652.0,30651.0,0.265376]
[1688241516324,0.0349138,30652.0,30651.0,0.2458]
[1688241517227,0.0349138,30652.0,30651.0,0.24558142]
[1688241520230,0.0349138,30652.0,30651.0,0.26515742]
[1688241527034,0.0349138,30652.0,30651.0,0.24558142]
[1688241531138,0.0349138,30652.0,30650.0,0.019576]
[1688241531343,0.0349138,30652.0,30651.0,0.2468]
[1688241531728,0.0349138,30652.0,30651.0,0.266376]
[1688241532939,0.0349138,30652.0,30651.0,0.2468]
[1688241538031,0.0349138,30652.0,30651.0,0.266376]
[1688241543649,0.03007684,30652.0,30651.0,0.26620962]
[1688241547652,0.09400264,30652.0,30651.0,0.26620962]
[1688241547849,0.03007684,30652.0,30651.0,0.26620962]
[1688241556558,0.03007684,30652.0,30651.0,0.26603602]
[1688241559956,0.03007684,30652.0,30645.0,0.34183117]
[1688241559957,0.05,30648.0,30645.0,0.227819]
[1688241560157,0.6062,30646.0,30642.0,0.3223]
[1688241560459,0.6062,30646.0,30642.0,0.019581]
[1688241560460,0.2461,30643.0,30642.0,0.019581]
[1688241560752,0.019581,30643.0,30642.0,0.2453]
[1688241560958,0.02987272,30643.0,30642.0,0.2453]
[1688241561156,0.02907699,30643.0,30642.0,0.264882]
[1688241561359,0.01878527,30643.0,30642.0,0.587182]
[1688241562953,0.33990523,30643.0,30642.0,0.587182]
[1688241566652,0.33990523,30643.0,30642.0,0.60541169]
[1688241567057,0.33990523,30643.0,30642.0,0.587182]
[1688241568659,0.32111996,30643.0,30642.0,0.587182]
[1688241568860,0.32111996,30643.0,30642.0,0.62426114]
[1688241569565,0.058744,30645.0,30642.0,0.62426114]
[1688241569755,0.058744,30645.0,30644.0,0.6082]
[1688241569954,0.058744,30645.0,30644.0,0.66485914]
[1688241570153,0.058744,30645.0,30644.0,0.66472594]
[1688241570462,0.08463652,30645.0,30644.0,0.66472594]
[1688241583272,0.08463652,30645.0,30644.0,0.66459811]
[1688241583767,0.08463652,30645.0,30644.0,0.30379811]
[1688241584065,0.08463652,30645.0,30644.0,0.66459811]
[1688241585567,0.08463652,30645.0,30644.0,0.64636842]
[1688241586173,0.08463652,30645.0,30644.0,0.66459811]
[1688241586378,0.08463652,30645.0,30644.0,0.64636842]
[1688241586564,0.08463652,30645.0,30644.0,0.62751897]
[1688241589372,0.08463652,30645.0,30644.0,0.66459811]
[1688241593080,0.08463652,30645.0,30644.0,0.30379811]
[1688241593280,0.08463652,30645.0,30644.0,0.66459811]
[1688241593781,0.08463652,30645.0,30644.0,0.30379811]
[1688241593982,0.08463652,30645.0,30644.0,0.66459811]
[1688241595572,0.08463652,30645.0,30644.0,0.64636842]
[1688241597174,0.08463652,30645.0,30644.0,0.64615157]
[1688241597375,0.08463652,30645.0,30644.0,0.64553181]
[1688241597571,0.08463652,30645.0,30644.0,0.62730212]
[1688241597772,0.08463652,30645.0,30644.0,0.26650212]
[1688241598569,0.08463652,30645.0,30644.0,0.28535157]
[1688241598773,0.08463652,30645.0,30644.0,0.30358126]
[1688241599872,0.08463652,30645.0,30644.0,0.28535157]
[1688241600272,0.08463652,30645.0,30644.0,0.30358126]
[1688241602380,0.02589252,30645.0,30644.0,0.30358126]
[1688241602882,0.01958,30645.0,30644.0,0.30358126]
[1688241604688,0.02645679,30646.0,30644.0,0.30358126]
[1688241604880,0.02645679,30646.0,30645.0,0.30405914]
[1688241605283,0.02645679,30646.0,30645.0,0.61615914]
[1688241606075,0.03045542,30646.0,30645.0,0.61615914]
[1688241608082,0.05003442,30646.0,30645.0,0.61615914]
[1688241612093,0.05003442,30646.0,30645.0,0.61605989]
[1688241627094,0.05003442,30646.0,30645.0,0.61588092]
[1688241630193,0.05003442,30646.0,30645.0,0.97668092]
[1688241635707,0.05003442,30646.0,30645.0,0.95810969]
[1688241635910,0.05003442,30646.0,30645.0,0.93988]
[1688241636500,0.05003442,30646.0,30645.0,0.95810969]
[1688241636702,0.05003442,30646.0,30645.0,0.97695914]
[1688241638710,0.05003442,30646.0,30645.0,0.93988]
[1688241638905,0.05003442,30646.0,30645.0,0.97695914]
[1688241640011,0.05003442,30646.0,30645.0,0.61615914]
[1688241640204,0.05003442,30646.0,30645.0,0.93975546]
[1688241640597,0.05003442,30646.0,30645.0,0.95798515]
[1688241640798,0.04603579,30646.0,30645.0,0.96773068]
[1688241641511,0.04603579,30646.0,30645.0,0.94950099]
[1688241642011,0.04603579,30646.0,30645.0,0.96773068]
[1688241644418,0.04603579,30646.0,30645.0,0.94950099]
[1688241644615,0.04603579,30646.0,30645.0,0.96773068]
[1688241645112,0.04603579,30646.0,30645.0,0.94950099]
[1688241645622,0.04603579,30646.0,30645.0,0.96835044]
[1688241645916,0.04603579,30646.0,30645.0,0.98658013]
[1688241650719,0.04603579,30646.0,30645.0,0.96835044]
[1688241650910,0.04603579,30646.0,30645.0,0.98658013]
[1688241652912,0.04603579,30646.0,30645.0,0.98649877]
[1688241653115,0.04603579,30646.0,30645.0,0.94941963]
[1688241655115,0.04603579,30646.0,30645.0,0.98649877]
[1688241655321,0.04603579,30646.0,30645.0,0.96826908]
[1688241655521,0.04603579,30646.0,30645.0,0.60746908]
[1688241655725,0.04603579,30646.0,30645.0,0.96826908]
[1688241655918,0.04603579,30646.0,30645.0,0.98649877]
[1688241659638,0.04603579,30646.0,30645.0,0.62569877]
[1688241659838,0.04603579,30646.0,30645.0,0.98649877]
[1688241660040,0.04603579,30646.0,30645.0,0.62569877]
[1688241660238,0.04603579,30646.0,30645.0,0.96826908]
[1688241660746,0.04603579,30646.0,30645.0,0.98649877]
[1688241662143,0.04603579,30646.0,30645.0,0.96826908]
[1688241662531,0.04603579,30646.0,30645.0,0.98649877]
[1688241662931,0.04603579,30646.0,30645.0,0.94941963]
[1688241664436,0.04603579,30646.0,30645.0,0.96764932]
[1688241664842,0.04603579,30646.0,30645.0,0.98649877]
[1688241665043,0.04603579,30646.0,30645.0,0.96826908]
[1688241665942,0.04603579,30646.0,30645.0,0.98649877]
[1688241667339,0.04603579,30646.0,30645.0,0.62569877]
[1688241667546,0.04603579,30646.0,30645.0,0.96826908]
[1688241667745,0.04603579,30646.0,30645.0,0.96820854]
[1688241668134,0.04603579,30646.0,30645.0,0.98643823]
[1688241670261,0.04580083,30646.0,30645.0,0.98643823]
[1688241672049,0.04580083,30646.0,30645.0,0.62563823]
[1688241672353,0.04580083,30646.0,30645.0,0.98643823]
[1688241673246,0.04580083,30646.0,30645.0,0.96820854]
[1688241674338,0.04580083,30646.0,30645.0,0.98643823]
[1688241675052,0.04580083,30646.0,30645.0,0.96820854]
[1688241676751,0.04580083,30646.0,30645.0,0.98643823]
[1688241677252,0.04580083,30646.0,30645.0,0.96820854]
[1688241680851,0.04580083,30646.0,30645.0,0.98643823]
[1688241681349,0.04580083,30646.0,30645.0,0.96820854]
[1688241682845,0.04580083,30646.0,30645.0,0.98643823]
[1688241683050,0.04580083,30646.0,30645.0,0.96820854]
[1688241683440,0.04580083,30646.0,30645.0,0.98643823]
[1688241683650,0.04580083,30646.0,30645.0,0.96809753]
[1688241684644,0.04580083,30646.0,30645.0,0.94924808]
[1688241687852,0.04580083,30646.0,30645.0,0.58844808]
[1688241688060,0.04580083,30646.0,30645.0,0.94924808]
[1688241691855,0.04580083,30646.0,30645.0,0.96809753]
[1688241695854,0.04580083,30646.0,30645.0,0.60729753]
[1688241696060,0.04580083,30646.0,30645.0,0.96809753]
[1688241696262,0.04580083,30646.0,30645.0,0.94924808]
[1688241698655,0.04580083,30646.0,30645.0,0.9490652]
[1688241700064,0.04580083,30646.0,30645.0,0.5882652]
[1688241700366,0.04580083,30646.0,30645.0,0.9490652]
[1688241709071,0.04580083,30646.0,30645.0,0.5882652]
[1688241709463,0.04580083,30646.0,30645.0,0.9490652]
[1688241712883,0.04580083,30646.0,30645.0,0.94893391]
[1688241722968,0.04580083,30646.0,30645.0,0.58813391]
[1688241726383,0.11026635,30646.0,30645.0,0.58813391]
[1688241726572,0.01983356,30646.0,30645.0,0.58813391]
[1688241727679,0.01983356,30646.0,30645.0,0.58798766]
[1688241734292,0.34091966,30646.0,30645.0,0.58798766]
[1688241741301,0.34091966,30646.0,30645.0,0.58783764]
[1688241741699,0.40715574,30646.0,30645.0,0.58783764]
[1688241745506,0.40715574,30646.0,30645.0,0.2667512]
[1688241745903,0.40715574,30646.0,30645.0,0.2863312]
[1688241746101,0.40715574,30646.0,30645.0,0.5337312]
[1688241747011,0.34091966,30646.0,30645.0,0.5337312]
[1688241748911,0.34091966,30646.0,30645.0,0.21265941]
[1688241749209,0.34091966,30646.0,30645.0,0.23948195]
[1688241751804,0.34091966,30646.0,30644.0,0.29879744]
[1688241752010,0.34091966,30646.0,30645.0,0.32788]
[1688241752208,0.34091966,30646.0,30645.0,0.58072933]
[1688241755018,0.34091966,30646.0,30645.0,0.27242933]
[1688241757820,0.34091966,30646.0,30644.0,0.04895]
[1688241758022,0.34091966,30646.0,30645.0,0.01958]
[1688241758222,0.34091966,30646.0,30645.0,0.27106081]
[1688241760726,0.34091966,30646.0,30644.0,0.32134829]
[1688241760925,0.34091966,30646.0,30645.0,0.02365748]
[1688241761125,0.34091966,30646.0,30645.0,0.26793687]
[1688241763733,0.34091966,30646.0,30644.0,0.31718108]
[1688241763921,0.34091966,30646.0,30645.0,0.26698]
[1688241766633,0.01983356,30646.0,30645.0,0.26698]
[1688241766929,0.01983356,30646.0,30644.0,0.26310906]
[1688241767132,0.01983356,30646.0,30645.0,0.26698]
[1688241769927,0.01983356,30646.0,30645.0,0.2468]
[1688241770132,0.01983356,30646.0,30645.0,0.26638]
[1688241773235,0.01983356,30646.0,30644.0,0.15436746]
[1688241773428,0.01983356,30646.0,30645.0,0.26698]
[1688241776232,0.01983356,30646.0,30644.0,0.10029711]
[1688241776428,0.01983356,30646.0,30645.0,0.26488]
[1688241779135,0.01983356,30646.0,30644.0,0.04413127]
[1688241779435,0.3014,30645.0,30644.0,0.04413127]
[1688241779633,0.32098,30645.0,30644.0,0.29153127]
[1688241782237,0.32098,30645.0,30643.0,0.419542]
[1688241782428,0.32098,30645.0,30644.0,0.29425]
[1688241785240,0.32098,30645.0,30643.0,0.39274307]
[1688241785443,0.32098,30645.0,30644.0,0.29635]
[1688241788445,0.32098,30645.0,30643.0,0.419542]
[1688241788643,0.32098,30645.0,30644.0,0.29515]
[1688241791448,0.32098,30645.0,30644.0,0.04895]
[1688241794150,0.32098,30645.0,30644.0,0.29635]
[1688241794351,0.32098,30645.0,30644.0,0.2474]
[1688241794649,0.32098,30645.0,30644.0,0.29635]
[1688241797243,0.32098,30645.0,30643.0,0.39484719]
[1688241797548,0.32098,30645.0,30644.0,0.29425]
[1688241800552,0.32098,30645.0,30644.0,0.04895]
[1688241801161,0.32098,30645.0,30644.0,0.29575]
[1688241801457,0.32098,30645.0,30644.0,0.2468]
[1688241803551,0.32098,30645.0,30643.0,0.419542]
[1688241803859,0.32098,30645.0,30644.0,0.26698]
[1688241806566,0.32098,30645.0,30643.0,0.36548028]
[1688241806859,0.32098,30645.0,30644.0,0.26488]
[1688241809462,0.32098,30645.0,30643.0,0.30931856]
[1688241809662,0.32098,30645.0,30644.0,0.01958]
[1688241809866,0.32098,30645.0,30644.0,0.26698]
[1688241812462,0.32098,30645.0,30643.0,0.058742]
[1688241812661,0.32098,30645.0,30644.0,0.26578]
[1688241815467,0.32098,30645.0,30643.0,0.058742]
[1688241815662,0.56768,30645.0,30644.0,0.26638]
[1688241816059,0.56768,30645.0,30644.0,0.2468]
[1688241817769,0.56768,30645.0,30642.0,0.2453]
[1688241817971,0.2474,30643.0,30642.0,0.2453]
[1688241818273,0.266981,30643.0,30642.0,0.2453]
[1688241818468,0.266981,30643.0,30639.0,0.63157626]
[1688241818669,0.62199551,30642.0,30640.0,0.019583]
[1688241818870,0.019582,30641.0,30640.0,0.019583]
[1688241819063,0.019582,30641.0,30640.0,0.264883]
[1688241819269,0.019582,30641.0,30640.0,0.2453]
[1688241822077,0.05439551,30640.0,30639.0,0.55753524]
[1688241822374,0.019583,30640.0,30639.0,0.80493524]
[1688241824173,0.019583,30640.0,30639.0,0.82378469]
[1688241824985,0.019583,30640.0,30639.0,0.80493524]
[1688241825167,0.019583,30640.0,30639.0,0.80486864]
[1688241825465,0.019583,30640.0,30639.0,0.48380767]
[1688241825783,0.019583,30640.0,30639.0,0.50339067]
[1688241828481,0.019583,30640.0,30639.0,0.18231712]
[1688241829175,0.019583,30640.0,30639.0,0.20190012]
[1688241829579,0.019583,30640.0,30639.0,0.264883]
[1688241829780,0.019583,30640.0,30639.0,0.625683]
[1688241830881,0.019583,30640.0,30639.0,0.264883]
[1688241831081,0.019583,30640.0,30639.0,0.625683]
[1688241831475,0.019583,30640.0,30639.0,0.30461613]
[1688241831879,0.019583,30640.0,30638.0,0.79115187]
[1688241832186,0.019583,30640.0,30639.0,0.28523245]
[1688241834290,0.019583,30640.0,30639.0,0.266383]
[1688241834488,0.07397851,30640.0,30638.0,0.71763438]
[1688241834701,0.019583,30640.0,30639.0,0.2474]
[1688241835180,0.019583,30640.0,30639.0,0.266983]
[1688241835581,0.019583,30640.0,30639.0,0.28583245]
[1688241837484,0.09282796,30640.0,30639.0,0.2453]
[1688241838181,0.019583,30640.0,30639.0,0.264883]
[1688241838681,0.019583,30640.0,30639.0,0.2832455]
[1688241840598,0.019583,30640.0,30638.0,0.73435154]
[1688241840802,0.019583,30640.0,30639.0,0.2474]
[1688241841189,0.019583,30640.0,30639.0,0.266983]
[1688241843893,0.07397851,30640.0,30638.0,0.68027447]
[1688241844096,0.03843245,30640.0,30639.0,0.266983]
[1688241845110,0.019583,30640.0,30639.0,0.266983]
[1688241846801,0.03843245,30640.0,30638.0,0.62620071]
[1688241847011,0.03843245,30640.0,30639.0,0.266983]
[1688241848413,0.019583,30640.0,30639.0,0.266983]
[1688241849710,0.019583,30640.0,30638.0,0.03739152]
[1688241849909,0.019583,30640.0,30639.0,0.019583]
[1688241850108,0.019583,30640.0,30639.0,0.266983]
[1688241852214,0.03843245,30640.0,30639.0,0.2474]
[1688241852814,0.01884945,30639.0,30637.0,0.34590371]
[1688241853014,0.03843345,30639.0,30638.0,0.2474]
[1688241853215,0.019584,30639.0,30638.0,0.2474]
[1688241855714,0.019584,30639.0,30638.0,0.2453]
[1688241857715,0.328284,30639.0,30638.0,0.2453]
[1688241858712,0.01884945,30638.0,30637.0,0.00964367]
[1688241858914,0.04033504,30639.0,30637.0,0.305555]
[1688241859116,0.04033504,30639.0,30638.0,0.2474]
[1688241859307,0.05726802,30641.0,30639.0,0.03707914]
[1688241859504,0.048958,30640.0,30637.0,0.058755]
[1688241859707,0.048958,30640.0,30639.0,0.2468]
[1688241861710,0.01884945,30639.0,30636.0,0.75618385]
[1688241861911,0.03843245,30639.0,30638.0,0.2474]
[1688241862117,0.019583,30639.0,30638.0,0.2474]
[1688241862719,0.019583,30639.0,30638.0,0.26624945]
[1688241864917,0.019583,30639.0,30636.0,0.70138928]
[1688241865117,0.019583,30639.0,30638.0,0.2468]
[1688241867825,0.03843245,30639.0,30636.0,0.62714716]
[1688241868012,0.03843245,30639.0,30638.0,0.2474]
[1688241868212,0.019583,30639.0,30638.0,0.2474]
[1688241870821,0.019583,30639.0,30636.0,0.57309877]
[1688241871015,0.01884945,30638.0,30637.0,0.019585]
[1688241871215,0.03843345,30638.0,30637.0,0.266985]
[1688241871822,0.019584,30638.0,30637.0,0.266985]
[1688241873525,0.019584,30638.0,30637.0,0.2474]
[1688241873728,0.019584,30638.0,30636.0,0.51905197]
[1688241873920,0.01884945,30637.0,30636.0,0.15825197]
[1688241874120,0.019584,30638.0,30636.0,0.40505197]
[1688241874320,0.019584,30638.0,30637.0,0.2474]
[1688241876737,0.03843345,30638.0,30636.0,0.44541926]
[1688241877037,0.03843345,30638.0,30637.0,0.2453]
[1688241877231,0.019584,30638.0,30637.0,0.2453]
[1688241879625,0.03843345,30638.0,30636.0,0.36968793]
[1688241879834,0.019584,30638.0,30636.0,0.36968793]
[1688241880039,0.019584,30638.0,30636.0,0.00888793]
[1688241880242,0.019584,30638.0,30636.0,0.36968793]
[1688241880442,0.019584,30638.0,30636.0,0.38791762]
[1688241880940,0.019584,30638.0,30636.0,0.41418466]
[1688241881140,0.019584,30638.0,30637.0,0.2474]
[1688241882634,0.09247388,30637.0,30636.0,0.39595497]
[1688241882840,0.09247388,30637.0,30636.0,0.64125497]
[1688241883230,0.07362443,30637.0,30636.0,0.64125497]
[1688241883426,0.07362443,30637.0,30636.0,0.65948466]
[1688241883632,0.07362443,30637.0,30636.0,0.64125497]
[1688241883933,0.07362443,30637.0,30636.0,0.29868466]
[1688241884133,0.07362443,30637.0,30636.0,0.65948466]
[1688241884534,0.07362443,30637.0,30636.0,0.28045497]
[1688241885333,0.07362443,30637.0,30636.0,0.64125497]
[1688241885742,0.07362443,30637.0,30636.0,0.28045497]
[1688241885939,0.07362443,30637.0,30636.0,0.64125497]
[1688241886341,0.07362443,30637.0,30636.0,0.28045497]
[1688241886640,0.07362443,30637.0,30636.0,0.64125497]
[1688241887928,0.37672443,30637.0,30636.0,0.64125497]